bitfinex/quotes_ETHUSD_20220218
["timestamp","ask_amount","ask_price","bid_price","bid_amount"]
[1645161159272,0.00522259,2886.0,2885.7,0.87347801]
[1645161159674,0.00522259,2886.0,2885.7,0.00693801]
[1645161160675,0.008425,2886.0,2885.7,0.00693801]
[1645161161476,0.00522259,2886.0,2885.7,0.00693801]
[1645161161680,0.008425,2886.0,2885.7,0.00693801]
[1645161162822,0.00522259,2886.0,2885.7,0.00693801]
[1645161163024,0.008425,2886.0,2885.7,0.00693801]
[1645161163623,0.83023007,2886.1,2885.7,0.00693801]
[1645161164723,0.83023007,2886.1,2885.7,0.87349801]
[1645161165964,1.136232,2886.2,2885.7,0.87349801]
[1645161166561,1.136232,2886.2,2885.7,0.00693801]
[1645161166764,1.136232,2886.2,2885.9,0.0265127]
[1645161167566,0.93394792,2886.1,2885.9,0.0265127]
[1645161169068,1.80372025,2886.1,2885.9,0.0265127]
[1645161169909,1.80051792,2886.1,2885.9,0.0265127]
[1645161170111,1.80372025,2886.1,2885.9,0.0265127]
[1645161171111,1.80051792,2886.1,2885.9,0.0265127]
[1645161171411,1.80372025,2886.1,2885.9,0.0265127]
[1645161171611,1.80372025,2886.1,2885.7,0.04223715]
[1645161172414,1.80051792,2886.1,2885.7,0.04223715]
[1645161172616,1.80372019,2886.1,2885.7,0.04223715]
[1645161173469,1.80051792,2886.1,2885.7,0.04223715]
[1645161173667,1.80372019,2886.1,2885.7,0.04223715]
[1645161174668,1.80051792,2886.1,2885.7,0.90880715]
[1645161174869,0.86657,2886.1,2885.7,0.90880715]
[1645161175068,0.86977227,2886.1,2885.7,0.90880715]
[1645161175869,0.86657,2886.1,2885.7,0.90880715]
[1645161176267,0.86977227,2886.1,2885.7,0.90880715]
[1645161176468,0.00320227,2886.1,2885.7,0.90880715]
[1645161176668,0.00320227,2886.1,2885.9,0.03535027]
[1645161177131,0.269662,2886.2,2885.9,0.03535027]
[1645161177324,0.00320233,2886.1,2885.9,0.03535027]
[1645161178319,0.269662,2886.2,2885.9,0.90186027]
[1645161178522,0.00320233,2886.1,2886.0,3.5]
[1645161179020,0.00320233,2886.1,2885.9,1.76824027]
[1645161179221,0.00320233,2886.1,2886.0,5.84324147]
[1645161179419,0.00320233,2886.1,2886.0,4.36635]
[1645161179620,0.27485848,2886.2,2886.0,5.84324045]
[1645161179824,0.27485848,2886.2,2886.1,1.47685697]
[1645161180422,0.27485848,2886.2,2886.1,2.34320697]
[1645161180662,0.27485848,2886.2,2886.1,2.34318087]
[1645161181665,1.1904,2886.7,2886.3,0.86635]
[1645161181970,5.225113,2887.1,2886.3,0.86635]
[1645161181971,0.43999128,2887.4,2886.3,1.79815]
[1645161182170,0.87348083,2887.9,2886.4,5.73570128]
[1645161182171,1.1464,2887.6,2886.4,5.73570128]
[1645161182375,4.9871,2887.9,2886.5,6.47675292]
[1645161182668,1.1464,2888.2,2886.6,5.64885292]
[1645161182868,1.1464,2888.2,2887.0,0.86581]
[1645161183168,1.1464,2888.2,2887.4,0.86583]
[1645161183367,1.1464,2888.2,2887.5,1.47675292]
[1645161183570,0.01279454,2888.0,2887.5,1.47675292]
[1645161183769,0.01279454,2888.0,2887.3,3.4633]
[1645161184067,0.01279454,2888.0,2887.4,1.47610604]
[1645161184270,1.1464,2888.2,2887.5,3.5]
[1645161184514,0.00319895,2887.8,2887.6,2.34191604]
[1645161184715,0.00319895,2887.8,2887.7,0.86581]
[1645161184927,0.00319895,2887.8,2887.7,1.48871]
[1645161185515,4.4059,2888.8,2887.7,1.48871]
[1645161185714,4.4059,2888.8,2887.8,0.86571]
[1645161185917,0.00319892,2887.9,2887.7,2.35452]
[1645161186515,0.00319892,2887.9,2887.7,3.51570195]
[1645161186819,4.37559319,2888.7,2888.0,0.86571]
[1645161187023,0.01278398,2888.4,2888.0,1.73142]
[1645161187927,1.1747,2888.8,2888.2,0.86569]
[1645161188163,0.00319626,2888.3,2888.2,0.86569]
[1645161189164,1.02003206,2888.8,2888.2,0.86569]
[1645161189566,0.00319623,2888.4,2888.2,0.86569]
[1645161190367,0.1731,2889.2,2888.2,1.73128]
[1645161190569,7.3126,2889.3,2888.5,0.8656]
[1645161190768,0.01279257,2888.9,2888.5,1.7228]
[1645161191572,1.11282217,2889.2,2888.5,1.7228]
[1645161191914,0.0031984,2888.8,2888.5,1.7228]
[1645161192420,0.0031984,2888.8,2888.5,5.2228]
[1645161192823,1.4618,2889.7,2888.5,5.2228]
[1645161193021,0.00319843,2888.8,2888.5,5.2228]
[1645161193920,0.95701522,2889.6,2888.5,5.2228]
[1645161194122,0.95701522,2889.6,2888.9,0.86548]
[1645161194324,0.0127918,2889.2,2888.9,0.86548]
[1645161195221,0.95701522,2889.6,2888.9,0.86548]
[1645161195427,0.00319821,2889.2,2888.9,0.86548]
[1645161195863,0.00319821,2889.2,2889.0,3.5]
[1645161196067,0.00319821,2889.2,2889.1,0.86533]
[1645161196263,0.00319821,2889.2,2889.1,5.21303]
[1645161196463,2.36033395,2890.2,2889.2,2.01943189]
[1645161196666,0.0127907,2889.7,2889.3,3.5]
[1645161197066,0.0127907,2889.7,2889.2,0.86531]
[1645161197666,0.04149492,2889.8,2889.4,0.8653]
[1645161197866,0.4915874,2890.2,2889.4,0.8653]
[1645161199615,0.4915874,2890.2,2889.2,0.86543]
[1645161199816,0.4915874,2890.2,2889.2,4.36543]
[1645161200016,0.25,2890.3,2889.2,4.36543]
[1645161200315,0.25,2890.3,2889.2,5.23072]
[1645161200518,0.25,2890.3,2889.2,4.36529]
[1645161200723,0.25,2890.3,2889.5,0.86529]
[1645161201120,0.88261912,2890.1,2889.5,0.86529]
[1645161201318,0.88261912,2890.1,2889.0,5.23058]
[1645161201319,0.88261912,2890.1,2889.8,0.00159666]
[1645161202322,0.88261912,2890.1,2889.2,0.86542]
[1645161202521,0.88581678,2890.1,2889.8,0.00319804]
[1645161203166,1.75128678,2890.1,2889.8,0.00319804]
[1645161203372,5.25128678,2890.1,2889.8,0.00319804]
[1645161203566,5.24808912,2890.1,2888.8,1.7309]
[1645161203767,5.24808912,2890.1,2889.8,0.00319804]
[1645161203768,5.25128678,2890.1,2889.8,0.00319804]
[1645161203967,1.75128678,2890.1,2889.8,0.00319804]
[1645161204670,3.5,2890.0,2889.8,0.00319804]
[1645161204872,1.11570307,2889.5,2889.2,0.86543]
[1645161205072,1.11570307,2889.5,2889.0,1.73082]
[1645161205672,4.3655,2890.0,2889.0,1.73082]
[1645161205877,0.8655,2890.0,2889.0,1.73082]
[1645161206273,0.8655,2890.0,2889.4,0.00319828]
[1645161206473,0.00319741,2890.1,2889.4,0.00319828]
[1645161206679,1.03317343,2889.6,2889.4,0.00319828]
[1645161207122,1.03317343,2889.6,2889.0,1.73082]
[1645161207522,1.03317343,2889.6,2889.4,0.00319828]
[1645161208324,1.03317343,2889.6,2889.1,0.86547]
[1645161208723,1.03317343,2889.6,2889.4,0.00319828]
[1645161210124,0.00319741,2890.1,2889.4,0.00319828]
[1645161210770,3.5,2890.1,2889.0,1.73082]
[1645161210975,20.8519,2890.0,2889.6,0.00319815]
[1645161211174,20.8519,2890.0,2888.4,1.1305]
[1645161211175,26.54562,2889.7,2888.4,1.1305]
[1645161211371,0.25,2889.5,2888.4,1.1305]
[1645161211674,0.749,2889.5,2888.4,1.1305]
[1645161211869,1.09915633,2889.2,2888.3,1.618]
[1645161212273,2.26483633,2889.2,2888.3,2.48368]
[1645161213073,1.39915633,2889.2,2888.3,2.48368]
[1645161213473,1.09915633,2889.2,2888.6,0.0015964]
[1645161213677,1.09915633,2889.2,2888.6,0.8671864]
[1645161213874,0.00514465,2889.1,2888.6,0.8671864]
[1645161214515,0.00514465,2889.1,2888.7,0.00319864]
[1645161215518,0.50414465,2889.1,2887.4,3.5626]
[1645161215718,3.5,2889.0,2887.4,6.6704]
[1645161215917,0.50414465,2888.9,2888.8,0.00319862]
[1645161216518,0.80414465,2888.9,2888.8,0.00319862]
[1645161216718,0.80414465,2888.9,2888.0,0.86576]
[1645161216918,1.66991465,2888.9,2888.0,0.86576]
[1645161217121,2.53569465,2888.9,2888.7,0.00319864]
[1645161217724,3.5,2888.8,2888.7,0.00319864]
[1645161217923,3.5,2888.8,2887.7,1.73156]
[1645161217924,4.6729,2888.8,2887.7,1.73156]
[1645161218172,0.86587,2888.6,2887.7,1.73156]
[1645161218369,0.50414465,2888.5,2887.7,1.73156]
[1645161218769,1.36999465,2888.5,2887.7,1.73156]
[1645161218975,0.50414465,2888.5,2887.7,1.73156]
[1645161219570,0.50414465,2888.5,2888.0,0.00319906]
[1645161220372,0.00514465,2888.5,2887.7,0.86577]
[1645161220573,0.00514465,2888.5,2888.1,0.00319897]
[1645161221577,0.00514465,2888.5,2887.5,0.00903813]
[1645161221920,0.87103465,2888.5,2888.2,0.00319895]
[1645161222327,1.73185,2888.4,2888.2,0.00319895]
[1645161222731,1.73185,2888.4,2887.6,1.4760681]
[1645161222924,0.00514465,2888.3,2887.5,0.00903813]
[1645161223123,0.00514465,2888.3,2888.2,0.00319895]
[1645161224130,0.00514465,2888.3,2887.7,1.47609161]
[1645161224323,2.60293465,2888.3,2888.1,0.00319897]
[1645161225325,2.60293465,2888.3,2887.7,1.4761022]
[1645161225524,2.60293465,2888.3,2887.8,1.4761022]
[1645161225768,2.60293465,2888.3,2888.1,0.00309103]
[1645161226569,2.60293465,2888.3,2887.6,1.47610573]
[1645161226772,2.60293465,2888.3,2888.1,0.00309103]
[1645161227575,2.60293465,2888.3,2887.6,1.47610573]
[1645161227777,2.60293465,2888.3,2888.1,0.00309103]
[1645161228777,2.60293465,2888.3,2887.6,2.34201573]
[1645161228778,1.73698465,2888.3,2887.6,2.34201573]
[1645161228979,1.73698465,2888.3,2887.5,0.00903813]
[1645161228980,1.73698465,2888.3,2887.7,1.47610573]
[1645161229177,1.73698465,2888.3,2888.1,0.00298904]
[1645161230013,1.73698465,2888.3,2887.6,1.47608004]
[1645161230213,1.73698465,2888.3,2887.6,2.34199004]
[1645161230413,0.87105465,2888.3,2888.1,0.00278054]
[1645161231218,0.87105465,2888.3,2887.7,1.47608004]
[1645161231417,0.87105465,2888.3,2887.8,1.47608004]
[1645161231616,0.87105465,2888.3,2887.5,0.00903813]
[1645161231617,0.87105465,2888.3,2888.1,0.00278054]
[1645161232028,1.73698465,2888.3,2888.1,0.00278054]
[1645161232223,0.87105465,2888.3,2888.1,0.00278054]
[1645161232424,0.87105465,2888.3,2887.8,1.47609402]
[1645161232627,0.87105465,2888.3,2888.1,0.00279446]
[1645161233670,0.87105465,2888.3,2887.8,1.47609402]
[1645161234574,0.87105465,2888.3,2887.9,1.47609402]
[1645161234770,0.87105465,2888.3,2887.6,0.86591]
[1645161234771,0.87105465,2888.3,2888.0,1.47609402]
[1645161235070,0.87105465,2888.3,2887.6,0.86591]
[1645161235270,1.73696465,2888.3,2887.7,1.47599349]
[1645161236173,0.87105465,2888.3,2887.7,2.34187349]
[1645161236376,0.00514465,2888.3,2887.9,0.00300409]
[1645161236573,4.4475,2888.7,2887.9,1.47899758]
[1645161236574,0.00514465,2888.6,2887.9,1.47899758]
[1645161237020,0.00514465,2888.6,2887.9,4.97899758]
[1645161237232,0.00514465,2888.6,2888.0,1.47599349]
[1645161237627,0.00514465,2888.6,2888.1,0.00279334]
[1645161237826,0.00514465,2888.6,2888.1,4.36856334]
[1645161238023,0.00514465,2888.6,2888.2,1.47599349]
[1645161238223,0.00514465,2888.8,2888.3,3.5]
[1645161238427,0.00514465,2889.0,2888.4,1.47599349]
[1645161238622,0.00514465,2889.4,2888.5,3.5]
[1645161238823,0.00514465,2889.4,2888.8,1.01951374]
[1645161239828,0.00514465,2889.4,2888.8,1.88497374]
[1645161241571,0.00514465,2889.4,2888.4,0.1729]
[1645161241770,0.00514465,2889.4,2888.5,1.47570336]
[1645161241973,0.00514465,2889.4,2888.3,3.5]
[1645161242177,0.87068465,2889.4,2888.4,1.47572192]
[1645161242379,1.73626465,2889.4,2888.4,1.47572192]
[1645161242674,1.17072465,2889.4,2888.4,1.47572192]
[1645161242871,0.87072465,2889.4,2888.4,1.47572192]
[1645161243372,0.87072465,2889.4,2888.5,1.10979417]
[1645161243571,0.86565,2889.3,2888.5,1.10979417]
[1645161243773,0.86567,2889.1,2888.5,1.10979417]
[1645161243974,0.87081465,2889.0,2888.5,1.10979417]
[1645161244426,0.87081465,2889.0,2888.6,1.47572816]
[1645161244723,0.87081465,2889.0,2888.2,1.5262]
[1645161244928,0.87081465,2889.0,2888.3,4.9757617]
[1645161244929,1.73653465,2889.0,2888.3,4.9757617]
[1645161245124,1.73653465,2889.0,2888.4,1.4757617]
[1645161245326,1.73653465,2889.0,2888.5,1.4757617]
[1645161245625,2.60224465,2889.0,2888.2,1.5262]
[1645161245825,2.60224465,2889.0,2888.3,1.47576051]
[1645161246027,0.87081465,2889.0,2888.3,5.98209125]
[1645161246226,0.00514465,2889.0,2888.4,1.47576051]
[1645161246425,0.00514465,2889.1,2888.4,1.47576051]
[1645161246626,0.00514465,2889.2,2888.4,1.47576051]
[1645161247231,0.87077465,2889.2,2888.5,3.5]
[1645161247433,0.87077465,2889.2,2888.6,1.47576051]
[1645161247630,0.00514465,2889.2,2888.6,1.47576051]
[1645161248372,0.00514465,2889.2,2888.9,0.89522029]
[1645161248575,2.59673,2889.5,2889.0,3.5]
[1645161248576,0.00514465,2889.5,2889.0,3.5]
[1645161248774,0.00514465,2889.7,2889.1,1.47559151]
[1645161248974,0.0028042,2889.9,2889.1,1.47559151]
[1645161248975,0.00514465,2889.8,2889.1,1.47559151]
[1645161249173,0.0028042,2889.9,2889.1,1.47559151]
[1645161249379,0.86546,2889.8,2889.1,2.34104151]
[1645161249674,0.86546,2889.8,2889.2,1.47559151]
[1645161249675,0.00514465,2889.7,2889.2,1.47559151]
[1645161250273,0.00794935,2889.9,2889.0,3.5]
[1645161250476,0.00514465,2889.9,2889.2,0.86543]
[1645161250675,0.00794935,2889.9,2889.2,0.86543]
[1645161251674,0.00794935,2889.9,2888.9,4.39522029]
[1645161251675,0.00514465,2889.9,2888.9,4.39522029]
[1645161251926,0.00514465,2889.9,2889.0,1.47556373]
[1645161251927,0.0079494,2889.9,2889.0,1.47556373]
[1645161252133,0.0079494,2889.9,2889.1,3.5]
[1645161252533,0.8733694,2889.9,2889.1,3.5]
[1645161252742,0.0079494,2889.9,2889.1,4.36545]
[1645161252930,0.00514465,2889.9,2889.1,4.36545]
[1645161253133,0.00794932,2889.9,2889.1,4.36545]
[1645161254030,0.00514465,2889.9,2889.1,4.36439663]
[1645161254230,0.00794932,2889.9,2889.2,0.86535]
[1645161254432,0.00794932,2889.9,2889.5,1.0049655]
[1645161254829,0.00280467,2889.9,2889.5,1.0049655]
[1645161255235,0.00514465,2890.1,2889.5,1.8702755]
[1645161255431,0.00514465,2890.1,2889.3,1.73063]
[1645161255679,0.00280477,2889.9,2889.3,1.73063]
[1645161255883,0.00280477,2889.9,2889.0,0.1729]
[1645161256080,0.00280477,2889.9,2889.1,1.47541526]
[1645161256280,0.00280477,2889.9,2889.4,0.86536]
[1645161256481,0.00514465,2890.1,2889.4,0.86536]
[1645161256882,0.00280467,2889.9,2889.4,0.86536]
[1645161257385,0.00280467,2889.9,2889.4,2.596]
[1645161257586,0.00280467,2889.9,2889.4,0.86534]
[1645161257791,0.00514465,2890.1,2889.4,0.86534]
[1645161257986,0.00280475,2889.9,2889.4,0.86534]
[1645161258991,0.00514465,2890.1,2889.4,0.86534]
[1645161259191,0.00280474,2889.9,2889.4,0.86534]
[1645161259716,0.00280474,2889.9,2889.5,0.86535]
[1645161260116,0.00514465,2890.1,2889.5,0.86535]
[1645161260325,0.00280477,2889.9,2889.3,1.73062]
[1645161260919,0.00280477,2889.9,2889.3,5.23062]
[1645161261118,0.00280477,2889.9,2889.3,1.73062]
[1645161261317,0.00514465,2890.1,2889.3,1.73062]
[1645161261520,0.00280472,2889.9,2889.5,0.86534]
[1645161261718,0.00280472,2889.9,2889.7,1.08135791]
[1645161262427,0.00280472,2889.9,2889.7,1.94648791]
[1645161262728,0.00280472,2889.9,2889.8,0.86513]
[1645161262729,0.00280474,2889.9,2889.8,0.86513]
[1645161263571,0.00280474,2889.9,2889.8,1.73034]
[1645161263774,0.00514465,2890.8,2890.0,0.8652]
[1645161263974,0.01121719,2890.4,2890.0,0.8652]
[1645161264172,0.01121719,2890.4,2889.7,2.81161791]
[1645161264374,0.00972158,2890.4,2889.7,2.81161791]
[1645161264576,0.00972158,2890.4,2889.8,2.34030049]
[1645161264778,0.00514465,2890.5,2890.0,5.5]
[1645161264972,0.00514465,2891.1,2890.1,3.5]
[1645161265172,0.00514465,2891.3,2889.9,4.4719]
[1645161265372,0.00514465,2891.3,2890.3,0.86486]
[1645161265773,0.00514465,2891.3,2890.3,3.45939]
[1645161265972,0.00514465,2891.3,2890.6,1.05585249]
[1645161267229,0.00514465,2891.3,2890.8,0.86491]
[1645161267432,0.00514465,2891.3,2890.6,2.59476]
[1645161267433,0.00514465,2891.3,2890.6,1.72982]
[1645161267635,0.00319488,2891.1,2890.6,1.72982]
[1645161268632,0.00514465,2891.3,2890.6,1.72982]
[1645161268831,0.00319493,2891.0,2890.6,1.72982]
[1645161269232,0.00319493,2891.0,2890.6,2.59481]
[1645161269937,0.00319496,2890.9,2890.6,2.59481]
[1645161270431,0.00319496,2890.9,2890.6,6.09481]
[1645161270673,0.00319496,2890.9,2890.8,0.86493]
[1645161270877,0.00514465,2891.3,2890.8,0.86493]
[1645161271274,0.00319499,2890.9,2890.8,0.86493]
[1645161272078,0.00514465,2891.3,2890.8,0.86493]
[1645161272279,0.00514465,2891.3,2890.8,2.64562831]
[1645161272579,0.00319493,2891.0,2890.8,2.64562831]
[1645161273384,0.00514465,2891.3,2890.8,2.64562831]
[1645161273579,0.0031949,2891.0,2890.9,0.86492]
[1645161273979,0.0031949,2891.0,2890.7,1.72988]
[1645161274627,0.00514465,2891.3,2890.7,1.72988]
[1645161274828,0.00319493,2891.0,2890.7,1.72988]
[1645161275030,0.00319493,2891.0,2890.8,0.86495]
[1645161275231,0.00319493,2891.0,2890.8,2.59475]
[1645161275830,0.00514465,2891.3,2890.8,1.7298]
[1645161276035,0.0031949,2891.0,2890.8,0.8649]
[1645161276631,0.0031949,2891.0,2890.9,0.86488]
[1645161276831,0.0031949,2891.0,2890.9,1.72976]
[1645161277039,0.00514465,2891.6,2890.9,1.72976]
[1645161277040,0.00514465,2891.6,2890.9,0.86488]
[1645161277238,0.00319488,2891.1,2890.9,0.86488]
[1645161278171,0.00514465,2891.6,2890.9,0.86488]
[1645161278373,0.00319485,2891.1,2890.9,0.86488]
[1645161279375,0.00514465,2891.6,2890.9,0.86488]
[1645161279574,0.00308942,2891.1,2890.9,0.86488]
[1645161279774,0.00308942,2891.1,2890.7,1.72973]
[1645161279975,0.00308942,2891.1,2890.7,5.22973]
[1645161280175,0.00308942,2891.1,2890.7,1.72973]
[1645161280576,0.01750047,2891.6,2890.7,1.72973]
[1645161280577,0.00514465,2891.6,2890.7,1.72973]
[1645161280775,0.00308947,2891.0,2890.7,1.72973]
[1645161280975,0.00308947,2891.0,2890.7,2.5947]
[1645161281183,0.00308947,2891.0,2890.7,3.45963]
[1645161281477,0.00308947,2891.0,2890.6,4.51805966]
[1645161281679,0.00514465,2891.6,2890.6,2.78820966]
[1645161281919,0.0030895,2891.0,2890.6,2.78820966]
[1645161282124,0.0030895,2891.0,2890.6,1.72983]
[1645161282430,0.0030895,2891.0,2890.6,0.86504]
[1645161283122,0.00514465,2891.4,2890.6,0.86504]
[1645161283322,0.00298471,2890.9,2890.6,0.86504]
[1645161283523,0.00298471,2890.9,2890.6,1.73005]
[1645161283727,0.00298471,2890.9,2890.7,0.86497]
[1645161284124,1.06913783,2891.4,2890.7,0.86497]
[1645161284325,0.00298471,2890.9,2890.7,0.86497]
[1645161284524,0.00298471,2890.9,2890.7,1.72995]
[1645161284724,0.00298471,2890.9,2890.7,0.86497]
[1645161284927,0.00298471,2890.9,2890.2,1.90302]
[1645161285126,0.00298471,2890.9,2890.2,1.73012]
[1645161285325,0.86511,2891.2,2890.2,1.73012]
[1645161285525,0.00298483,2890.7,2890.2,2.59522]
[1645161285773,0.00298483,2890.7,2890.0,0.00298551]
[1645161286280,0.01251158,2890.2,2889.6,1.04563805]
[1645161286475,0.01251158,2890.2,2888.5,1.5175]
[1645161286678,0.01251158,2890.2,2888.8,1.47544795]
[1645161286679,21.1019,2890.1,2888.8,1.47544795]
[1645161286878,0.86569,2889.7,2888.9,1.47544795]
[1645161287081,20.8519,2889.6,2888.5,1.5175]
[1645161287278,1.0,2889.5,2888.7,1.1170885]
[1645161287476,0.499,2889.4,2888.7,1.1170885]
[1645161287680,0.86569,2889.3,2888.7,1.1170885]
[1645161287877,0.8657,2889.1,2888.5,1.5175]
[1645161288081,0.8657,2889.1,2887.9,1.6646]
[1645161288082,0.499,2889.0,2887.9,1.6646]
[1645161288277,3.5,2888.9,2888.0,1.47578381]
[1645161288479,0.499,2888.8,2888.0,1.47578381]
[1645161288678,4.36586,2888.7,2887.6,0.66040128]
[1645161288883,0.499,2888.6,2887.6,0.66040128]
[1645161289079,3.5,2888.5,2888.0,1.10946387]
[1645161289428,0.499,2888.6,2888.0,1.10946387]
[1645161289429,0.86589,2888.4,2888.1,1.47578381]
[1645161289629,0.499,2888.6,2888.4,0.70836376]
[1645161290330,0.499,2888.6,2888.4,0.71156031]
[1645161291330,0.499,2888.6,2888.4,0.70836376]
[1645161291533,0.499,2888.6,2888.4,0.71156031]
[1645161292533,0.499,2888.6,2888.4,0.70836376]
[1645161293033,0.499,2888.6,2888.4,0.71156031]
[1645161294274,0.86572,2888.8,2888.5,1.03755958]
[1645161294474,0.1729,2889.5,2888.5,3.39474413]
[1645161294675,1.8352,2889.7,2888.6,1.47568455]
[1645161294869,3.7557,2889.9,2888.6,1.47568455]
[1645161295070,3.5828,2889.9,2888.6,1.47568455]
[1645161295271,23.7628,2889.9,2889.1,1.16074592]
[1645161295469,20.929,2889.9,2888.6,3.5]
[1645161295671,20.18,2889.6,2888.7,1.47556279]
[1645161295868,1.61447,2889.9,2888.4,0.70836376]
[1645161295869,0.9219,2889.9,2888.4,0.70836376]
[1645161296070,0.9219,2889.9,2888.5,1.47560053]
[1645161296270,20.18,2889.8,2888.5,1.47560053]
[1645161296471,20.18,2889.6,2888.5,1.47560053]
[1645161296670,0.6719,2889.5,2888.5,2.64888216]
[1645161296929,0.6719,2889.5,2888.5,1.17328163]
[1645161296930,0.86564,2889.4,2888.5,1.17328163]
[1645161297130,0.86572,2889.2,2888.5,1.17328163]
[1645161298027,1.73152,2889.0,2888.5,1.17328163]
[1645161298229,1.73152,2889.0,2888.4,0.70836376]
[1645161298429,1.73152,2889.0,2888.5,1.47568529]
[1645161299032,1.73152,2889.0,2888.6,0.00319888]
[1645161299632,1.73152,2889.0,2887.8,3.5]
[1645161299633,0.86576,2888.8,2887.4,5.03697763]
[1645161299836,0.86576,2888.8,2887.5,1.4760004]
[1645161299837,0.25,2888.6,2887.5,1.4760004]
[1645161300034,20.18,2888.4,2887.5,1.4760004]
[1645161300236,20.18,2888.4,2886.7,0.66040128]
[1645161300237,30.421,2888.3,2886.7,0.66040128]
[1645161300435,20.18,2888.1,2886.8,1.47613454]
[1645161300683,21.04637,2887.4,2886.9,1.47613454]
[1645161300879,20.679,2887.3,2887.0,1.47613454]
[1645161301081,20.679,2887.3,2886.0,0.88182143]
[1645161301082,20.3531,2887.2,2886.1,0.66040128]
[1645161301279,20.679,2887.1,2886.1,0.66040128]
[1645161301582,20.679,2887.1,2886.2,1.47638495]
[1645161301780,20.679,2887.1,2886.3,1.47638495]
[1645161301987,0.86643,2886.8,2886.4,1.47638495]
[1645161302182,0.8664,2886.7,2886.5,1.47638495]
[1645161302387,0.8664,2886.7,2886.6,1.47638495]
[1645161302583,0.8664,2886.7,2886.3,1.47638495]
[1645161302794,3.5,2887.0,2886.3,1.47638495]
[1645161303082,0.499,2887.0,2886.3,1.47638495]
[1645161303682,1.36535,2887.0,2886.5,0.00320001]
[1645161304526,1.36535,2887.0,2886.3,1.47638495]
[1645161304722,0.86635,2886.9,2886.3,1.47638495]
[1645161304923,0.499,2886.8,2886.6,0.00319996]
[1645161305923,0.499,2886.8,2886.3,1.47638495]
[1645161306123,0.499,2886.8,2886.6,0.00319998]
[1645161307132,0.499,2886.8,2886.3,1.47638495]
[1645161307330,0.499,2886.8,2886.6,0.00319998]
[1645161308175,0.499,2886.8,2886.3,1.47638495]
[1645161308580,0.499,2886.8,2886.6,0.00319998]
[1645161309181,0.499,2886.8,2886.7,0.42273278]
[1645161309582,1.25,2887.3,2887.1,0.63711396]
[1645161309890,0.499,2887.2,2887.1,0.63711396]
[1645161310083,1.1788,2888.0,2887.1,0.63711396]
[1645161310084,1.6778,2888.0,2887.1,0.63711396]
[1645161310281,0.499,2888.0,2887.1,0.63711396]
[1645161311080,0.86607,2887.9,2887.4,0.00319951]
[1645161311305,0.86607,2887.9,2887.4,0.73549951]
[1645161311925,0.86607,2887.9,2887.4,0.7323]
[1645161312134,0.86607,2887.9,2887.5,0.00318746]
[1645161312534,1.73215,2887.9,2887.5,0.00318746]
[1645161313131,1.73215,2887.9,2887.1,0.63711396]
[1645161313331,0.86602,2888.0,2887.6,0.00318743]
[1645161313536,0.86602,2888.0,2887.1,0.63711396]
[1645161313537,5.5,2887.9,2887.1,0.63711396]
[1645161313740,28.68,2887.8,2887.1,0.63711396]
[1645161313933,28.68,2887.8,2886.7,0.42273278]
[1645161313934,20.18,2887.2,2886.7,0.42273278]
[1645161314134,20.18,2887.2,2886.7,0.21136639]
[1645161314135,20.18,2887.0,2886.7,0.21136639]
[1645161314333,4.2879,2887.1,2885.4,0.00352383]
[1645161314334,20.18,2886.8,2885.4,0.00352383]
[1645161314532,0.9613,2886.9,2885.4,0.00352383]
[1645161314533,0.86668,2886.2,2885.4,1.47999101]
[1645161314738,1.36568,2886.2,2885.4,1.47999101]
[1645161314932,1.36568,2886.2,2885.5,1.47646718]
[1645161314933,0.499,2886.2,2885.5,1.47646718]
[1645161315239,0.499,2886.2,2885.2,7.3]
[1645161315240,0.499,2886.2,2885.6,0.00352383]
[1645161315432,0.499,2886.2,2885.3,1.48009458]
[1645161315881,0.499,2886.2,2885.8,0.00139431]
[1645161316681,0.25,2886.4,2885.3,0.00352383]
[1645161316885,0.25,2886.4,2885.3,1.48009636]
[1645161317288,0.25,2886.4,2885.9,0.00139426]
[1645161317890,1.499,2886.6,2885.9,0.00139426]
[1645161317891,0.499,2886.6,2885.9,0.00139426]
[1645161318086,0.499,2886.6,2885.8,1.47641465]
[1645161318285,0.499,2886.6,2886.0,0.00299278]
[1645161318685,0.499,2886.6,2886.2,0.89056171]
[1645161318890,0.1731,2887.2,2886.2,0.89056171]
[1645161319522,1.1731,2887.2,2886.6,0.2554922]
[1645161319723,1.4731,2887.2,2886.6,0.2554922]
[1645161319928,2.33937,2887.2,2886.6,0.2554922]
[1645161320126,0.86629,2887.1,2886.6,0.2554922]
[1645161320326,0.86629,2887.1,2886.6,0.2524534]
[1645161320327,3.5,2887.0,2886.6,0.2524534]
[1645161320531,3.999,2887.0,2886.6,0.2524534]
[1645161320730,3.999,2887.0,2886.0,0.00352383]
[1645161320731,20.18,2886.7,2886.0,0.00352383]
[1645161320927,0.3,2886.8,2885.5,0.00352383]
[1645161320928,20.8521,2886.6,2885.5,0.00352383]
[1645161321127,0.749,2886.5,2885.3,0.00352383]
[1645161321327,2.02969055,2886.0,2885.0,1.48028198]
[1645161321527,2.02969055,2886.0,2884.9,1.13993068]
[1645161321528,2.02969055,2886.0,2885.1,0.00352383]
[1645161322331,2.89633055,2886.0,2885.1,0.00352383]
[1645161322529,2.89633055,2886.0,2884.9,1.4803381]
[1645161322530,2.02969055,2886.0,2884.9,1.4803381]
[1645161322936,20.18,2885.8,2884.9,0.00352383]
[1645161323187,0.97807418,2885.5,2885.4,0.00298455]
[1645161323381,1.47707418,2885.5,2885.4,0.00298455]
[1645161323781,5.5,2885.4,2884.9,0.00352383]
[1645161323983,5.5,2885.4,2884.4,0.13854]
[1645161323984,20.18,2885.1,2884.5,0.00352383]
[1645161324180,20.679,2885.0,2884.9,0.07]
[1645161324380,21.679,2885.0,2884.9,0.07]
[1645161324982,24.58529651,2885.0,2884.9,0.07]
[1645161325183,24.59051492,2885.0,2884.9,0.07]
[1645161325380,24.76381492,2885.0,2884.9,0.07]
[1645161325584,3.41190841,2885.0,2884.9,0.07]
[1645161325787,0.67751841,2885.0,2884.9,0.07]
[1645161325983,1.67751841,2885.0,2884.9,0.07]
[1645161326281,0.67751841,2885.0,2884.9,0.07]
[1645161326685,0.50421841,2885.0,2884.9,0.07]
[1645161328137,0.499,2885.0,2884.9,0.07]